Cogmind - Beta 16 @@@ ROGUE MODE // 2025.12.27 @ 16:24:30 Player: PE-P51 Result: Destroyed by G-47 Trooper with Particle Gun Performance ------------- Evolutions (0) 0 Regions Visited (2) 400 Robots Destroyed (11) 55 Value Destroyed (361) 361 Prototype IDs (0) 0 Alien Tech Used (0) 0 Bonus (74) 74 TOTAL SCORE: 890 Bonus ------- Follower Combat Kills 74 Cogmind --------- Core Integrity 0/250 Matter 286/300 Energy 125/125 System Corruption 0% Temperature Cool (9) Movement Walking (190) Ox1 Location -10/Mines Parts ------- > --- POWER (1) -------- Light Ion Engine > --- PROPULSION (2) --- Aluminum Leg Aluminum Leg > --- UTILITY (2) ------ Improved Heat Sink Large Storage Unit > --- WEAPON (2) ------- Medium Laser Rocket Launcher > --- INVENTORY (15) --- Ion Engine Light Ion Engine Light Treads Light Treads Aluminum Leg Light Assault Rifle Light Assault Rifle Bore Cannon Grenade Launcher Mining Laser Peak State ------------ > --- POWER ------------ Light Ion Engine > --- PROPULSION ------- Aluminum Leg Aluminum Leg > --- UTILITY ---------- Improved Heat Sink Large Storage Unit > --- WEAPON ----------- Medium Laser Rocket Launcher > --- INVENTORY -------- Ion Engine Light Ion Engine Light Treads Light Treads Aluminum Leg Medium Laser Light Assault Rifle Light Assault Rifle Grenade Launcher Mining Laser [Rating: 11] Favorites ----------- Power Light Ion Engine Engine Light Ion Engine Propulsion Aluminum Leg Leg Aluminum Leg Utility Improved Heat Sink Device Improved Heat Sink Storage Large Storage Unit Weapon Medium Laser Energy Gun Medium Laser Ballistic Gun Light Assault Rifle Launcher Rocket Launcher Build | -11 -10 -10 ------- Run | Yrd Mat Min Slots Evolved . | . . . Power . | . . . Propulsion . | . . . Utility . | . . . Weapon . | . . . Parts Attached 14 | . 12 2 Power 2 | . 2 . Engine 2 | . 2 . Core . | . . . Reactor . | . . . Propulsion 5 | . 5 . Treads . | . . . Leg 5 | . 5 . Wheel . | . . . Hover . | . . . Flight . | . . . Utility 2 | . 2 . Device 1 | . 1 . Storage 1 | . 1 . Processor . | . . . Hackware . | . . . Protection . | . . . Artifact . | . . . Weapon 5 | . 3 2 Energy Gun 2 | . 1 1 Energy Cannon . | . . . Ballistic Gun 2 | . 2 . Ballistic Cannon . | . . . Launcher 1 | . . 1 Special Weapon . | . . . Impact Weapon . | . . . Slashing Weapon . | . . . Piercing Weapon . | . . . Special Melee Weapon . | . . . Unidentified Prototypes . | . . . Parts Lost 3 | . 1 2 Power . | . . . Propulsion 1 | . 1 . Utility . | . . . Weapon 2 | . . 2 Highest Loss Streak 1 | . 1 1 To Critical Strikes . | . . . Average Backups 9 | . 8 10 Power 1 | . 1 2 Propulsion 2 | . 2 3 Utility . | . . . Weapon 4 | . 4 5 Tool/Special . | . . . Unused Backups 14 | . 6 8 Power 3 | . 2 1 Propulsion 4 | . 2 2 Utility 2 | . 2 . Weapon 5 | . . 5 Tool/Special . | . . . Average Slot Usage (%) 93 | . 91 95 Engine 14 | . 14 14 Leg 27 | . 27 28 Device 10 | . 7 14 Storage 14 | . 14 14 Energy Gun 13 | . 13 14 Ballistic Gun 8 | . 14 4 Launcher 2 | . . 5 Peak Build Rating 11 | . 10 11 Average Rating 8 | . 7 10 On Entrance 7 | 6 6 10 Avg Prop Armor Cover (%) . | . . . Naked Turns . | . . . Heaviest Build 30 | 11 27 30 Greatest Support 20 | 20 20 20 Greatest Overweight (x) 2 | . 2 1 Average Overweight (x) . | . . 1 Largest Inventory Capacity 15 | . 15 15 Average Capacity 13 | . 10 15 Most Carried 11 | . 10 11 Average Carried 9 | . 8 10 Final Capacity 15 | 8 15 15 Final Carried 10 | 6 10 10 Class Distribution -------------------- 94% | Mutant 5% | Scavenger-Mutant Dominant Class ---------------- Mutant | -10/Materials Mutant | -10/Mines Resources | -11 -10 -10 ----------- Run | Yrd Mat Min Matter Collected 401 | 187 117 97 Remotely . | . . . Salvage Created 404 | . 243 161 Parts 12 | . 8 4 Haulers Intercepted . | . . . Recyclers Shooed 1 | . . 1 Parts Field Recycled . | . . . Retrieved Matter . | . . . Parts Self-Destructed . | . . . Prevented . | . . . Parts Restored . | . . . Kills | -11 -10 -10 ------- Run | Yrd Mat Min Combat Hostiles Destroyed 9 | . 6 3 Guns 8 | . 6 2 Classes Destroyed 2 | . 2 . Watcher 1 | . 1 . Grunt 10 | . 6 4 Best Kill Streak 5 | . 5 2 Combat Bots Only 4 | . 4 2 Max Kills in Single Turn 1 | . 1 1 Gunslinging . | . . . Exploded . | . . . Melee . | . . . Uniques/NPCs Destroyed . | . . . Combat | -11 -10 -10 -------- Run | Yrd Mat Min Hostile Shots Fired 67 | . 42 25 Missed 10 | . 7 3 Hits 57 | . 35 22 Projectile 57 | . 35 22 Critical Strikes 1 | . . 1 Damage Taken 740 | . 413 327 Core 253 | . 125 128 Absorbed by Shields . | . . . Core Remaining (%) 100 | 100 . . Volleys Fired 57 | . 38 19 Largest 2 | . 2 2 Hottest 70 | . 70 70 Shots Fired 93 | . 71 22 Gun 89 | . 71 18 Cannon . | . . . Launcher 4 | . . 4 Special . | . . . Kinetic 36 | . 33 3 Thermal 53 | . 38 15 Explosive 4 | . . 4 Electromagnetic . | . . . Robot Hit Streak 13 | . 10 13 Robot Miss Streak 3 | . 3 2 Penetration Max . | . . . Secondary Targets 2 | . 1 1 Max Gunslinging Chain 1 | . 1 1 Shots Hit Robots 62 | . 48 14 Core Hits 25 | . 15 10 Critical Kills . | . . . Critical Parts Destroyed . | . . . Critical Strikes 7 | . 3 4 Burn 7 | . 3 4 Melee Attacks . | . . . Impact . | . . . Slashing . | . . . Piercing . | . . . Sneak Attacks . | . . . Combat Hostiles . | . . . Follow-up Attacks . | . . . Damage Inflicted 985 | . 578 407 Guns 726 | . 578 148 Cannons . | . . . Explosions 246 | . . 246 Melee . | . . . Ramming 13 | . . 13 Kinetic 232 | . 212 20 Thermal 494 | . 366 128 Explosive 246 | . . 246 Electromagnetic . | . . . Impact . | . . . Slashing . | . . . Piercing . | . . . Highest Corruption . | . . . Average Corruption . | . . . Corruption Purged . | . . . Corruption Blocked . | . . . Overload Shots . | . . . Overflow Damage 2 | . . 2 Projectiles . | . . . Explosions 2 | . . 2 Melee . | . . . Knockbacks . | . . . Impact . | . . . Kinetic . | . . . Secondary . | . . . Self-Inflicted Damage 35 | . . 35 Shots 1 | . . 1 Rammed . | . . . Targets Rammed 3 | . 1 2 Kicked 3 | . 1 2 Crushed . | . . . Highest Temperature 302 | . 302 29 Average Temperature 91 | . 96 12 Received Heat Transfer 399 | . 228 171 Effects 2 | . 2 . Interference 2 | . 2 . Siege Activations . | . . . Martial Activations . | . . . Shielding Activations . | . . . Robots Disrupted . | . . . Combat Hostiles . | . . . Robots Corrupted . | . . . Combat Hostiles . | . . . Parts Fried . | . . . Impact Corruptions . | . . . Robots Melted 1 | . . 1 Combat Hostiles 1 | . . 1 Parts Melted 3 | . 1 2 Heat Transferred 1924 | . 1258 666 Parts Sabotaged . | . . . Parts Stolen . | . . . Parts Stripped . | . . . Power Chain Reactions . | . . . Alert | -11 -10 -10 ------- Run | Yrd Mat Min Maximum Alert Level . | . . . Low Security (%) 100 | . 100 100 Level 1 . | . . . Level 2 . | . . . Level 3 . | . . . Level 4 . | . . . Level 5 . | . . . High Security . | . . . Max Security . | . . . Peak Influence 102 | . 102 93 Initial . | . . . Average 24 | . 27 21 Influence Increases 423 | . 174 249 Destroy 0b10 Robot/C 260 | . 120 140 Destroy 0b10 Robot/NC 5 | . 5 . Destroy Leader 62 | . 22 40 Allied During Kill 21 | . . 21 Successful Hack 12 | . 12 . Destroy Structure 33 | . . 33 Lose Combat Pursuer 30 | . 15 15 Influence Decreases 402 | . 174 228 Time Decay 332 | . 164 168 Lost Part 30 | . 10 20 Lost Ally 40 | . . 40 Squads Dispatched 1 | . 1 . Investigation 1 | . 1 . Extermination . | . . . Reinforcement . | . . . Assault . | . . . Garrison . | . . . Intercept . | . . . Searches Triggered . | . . . Construction Impeded . | . . . Haulers Reinforced . | . . . Active Scanning Responses . | . . . Cargo Convoy Interrupts . | . . . Stealth | -11 -10 -10 --------- Run | Yrd Mat Min Distress Signals 2 | . 2 . Communications Jammed . | . . . Distress Signals . | . . . Times Spotted 19 | . 10 9 Peak Tracking Total 5 | . 5 3 Tactical Retreats 2 | . 1 1 Traps | -11 -10 -10 ------- Run | Yrd Mat Min Traps Triggered 2 | . 2 . Indirectly . | . . . Trap Hack Attempts . | . . . Triggered . | . . . Disarmed . | . . . Reprogrammed . | . . . Reused . | . . . Traps Extracted . | . . . Installed . | . . . Triggered . | . . . Machines | -11 -10 -10 ---------- Run | Yrd Mat Min Machines Disabled . | . . . Max in Single Turn . | . . . Machines Repaired . | . . . Machines Dismantled . | . . . Machines Sabotaged . | . . . Overloaded Fab Kills . | . . . Hacking | -11 -10 -10 --------- Run | Yrd Mat Min Machines Accessed 6 | . 6 . Terminals 5 | . 5 . Fabricators . | . . . Repair Stations . | . . . Recycling Units 1 | . 1 . Scanalyzers . | . . . Garrison Access . | . . . Total Hacks 13 | . 13 . Successful 7 | . 7 . Failed 6 | . 6 . Catastrophic 1 | . 1 . Database Lockouts . | . . . Manual 8 | . 8 . Terminals 11 | . 11 . Fabricators . | . . . Repair Stations . | . . . Recycling Units 2 | . 2 . Scanalyzers . | . . . Garrison Access . | . . . Terminal Hacks 6 | . 6 . Robot Analysis 2 | . 2 . Alert Level 3 | . 3 . Hauler Manifests 1 | . 1 . Fabricator Hacks . | . . . Repair Station Hacks . | . . . Recycling Unit Hacks . | . . . Scanalyzer . | . . . Garrison Access Hacks . | . . . Unauthorized Hacks 1 | . 1 . Terminals 1 | . 1 . Operators 1 | . 1 . Fabricators . | . . . Repair Stations . | . . . Recycling Units . | . . . Scanalyzers . | . . . Garrison Access . | . . . Data Cores Recovered . | . . . Used . | . . . Hacking Detections 6 | . 6 . Full Trace Events 1 | . 1 . Feedback Events . | . . . Feedback Blocked . | . . . Robot Schematics Acquired . | . . . Robots Built . | . . . Authchips . | . . . Time . | . . . Total Robot Build Rating . | . . . Part Schematics Acquired . | . . . Parts Built . | . . . Authchips . | . . . Time . | . . . Total Part Build Rating . | . . . Part Studies Acquired . | . . . Parts Repaired . | . . . Time . | . . . Parts Recycled . | . . . Recycled Matter . | . . . Retrieved Matter . | . . . Retrieved Components . | . . . Parts Scanalyzed . | . . . Part Schematics Acquired . | . . . Parts Damaged . | . . . Bothacking | -11 -10 -10 ------------ Run | Yrd Mat Min Used RIF Installer . | . . . Robots Hacked . | . . . Non-combat . | . . . Combat . | . . . Robot Hacks Applied . | . . . Relay Couplers Released . | . . . Fabnet Peak Effective % . | . . . Robots Rewired . | . . . Allies Hacked . | . . . Hacks Repelled . | . . . Allies | -11 -10 -10 -------- Run | Yrd Mat Min Total Allies 3 | . . 3 Largest Group 3 | . . 3 Highest-Rated Group 40 | . . 40 Highest-Rated Ally 16 | . . 16 Total Orders . | . . . Ally Attacks 15 | . . 15 Total Damage 138 | . . 138 Kills 4 | . . 4 Allies Corrupted . | . . . Allies Melted . | . . . Intel | -11 -10 -10 ------- Run | Yrd Mat Min Active Infowar (turns) . | . . . Robot Analysis Total 2 | . 2 . Derelict Logs Recovered 1 | . . 1 Drone Launches . | . . . Drone Recoveries . | . . . Exploration | -11 -10 -10 ------------- Run | Yrd Mat Min Turns Passed 1412 | . 646 766 Spaces Moved 735 | 1 356 378 Core . | . . . Treads . | . . . Legs 735 | 1 356 378 Wheels . | . . . Hover . | . . . Flight . | . . . Fastest Speed 120 | 120 120 190 Average Speed 166 | 120 142 190 Slowest Speed 260 | 120 260 190 Overloaded Moves . | . . . Propulsion Burnouts . | . . . Robots Hopped . | . . . Potential Cave-ins . | . . . Cave-ins Triggered . | . . . Exploration Rate (%) 44 | 1 61 71 Regions Visited 2 Branch Regions 1 Pre-discovered Areas . | . . . Known Exits Taken . | . . . Unknown Exits Taken 2 | 1 1 . Scrap Searched 1 | . . 1 Spaces Dug . | . . . Terrain Destroyed 43 | . . 43 Melee . | . . . Projectile . | . . . AOE 43 | . . 43 Terrain Rammed . | . . . Walls Destroyed . | . . . Machines Disabled . | . . . Actions | -11 -10 -10 --------- Run | Yrd Mat Min Total 832 | . 429 403 Wait 12 | . 12 . Move 733 | . 355 378 Hop . | . . . Pick Up 6 | . 4 2 Fast Attach 7 | . 7 . Attach 2 | . . 2 Detach . | . . . Swap 6 | . 6 . Drop 6 | . 6 . Fire 57 | . 38 19 Melee . | . . . Ram . | . . . Kick 3 | . 1 2 Crush . | . . . Escape Stasis . | . . . Rewire . | . . . Trap . | . . . Miscellaneous . | . . . Route ------- -11/Scrapyard -10/Materials (discovered 3 exits: [*Mat x2] / [*Min]) -10/Mines (discovered 2 exits: [*Mat x2]) History --------- Turn | Location | Event 1 | -11/Scrapyard | Discovered new exit (range 0) 1 | -11/Scrapyard | Entered Materials 127 | -10/Materials | Discovered new exit (range 7) 344 | -10/Materials | Build established: Mutant 380 | -10/Materials | Discovered new exit (range 8) 531 | -10/Materials | Discovered new exit (range 8) 647 | -10/Materials | Entered Mines 653 | -10/Mines | Assisted by bots powering up and referring to "LRC-V3" 851 | -10/Mines | Discovered new exit (range 6) 856 | -10/Mines | Core integrity fell below 50% 934 | -10/Mines | Learned 2 Materials zone layouts 937 | -10/Mines | Received a Rocket Launcher from a helpful Derelict 986 | -10/Mines | Discovered new exit (range 9) 1122 | -10/Mines | Core integrity fell below 20% 1158 | -10/Mines | A weapon hastily lodged in a ceiling crevice suddenly fell to the ground 1413 | -10/Mines | Destroyed by G-47 Trooper with Particle Gun Last Messages --------------- 01144_ U-05 Engineer lays Concrete. 01147_ U-05 Engineer builds a Wall. 01147_ K-01 Serf collects debris. 01148_ The unstable cave ceiling collapses. 01149_ Acquired 28 matter. 01150_ K-01 Serf collects debris. 01151_ U-05 Engineer builds a Wall. 01152_ The unstable cave ceiling collapses. 01154_ K-01 Serf collects debris. 01156_ U-05 Engineer lays Concrete. 01158_ U-05 Engineer builds a Wall. 01158_ A Bore Cannon has been hastily shoved under some rubble with a note attached: "Boring, it is not. Although I admit enemies do get bored, for sure." 01162_ Acquired Bore Cannon. 01162_ U-05 Engineer lays Concrete. 01167_ U-05 Engineer builds a Wall. 01230_ S-10 Pest destroyed. 01271_ Acquired 17 matter. 01310_ Trooper 1a destroyed. Map ----- +----------------------------------------------------+ | | | | | | | | | | | | | | | | | | | | | | | | | | | | | | | | | | | | | ????????????????????????????????????????? | | ????????????????????????????????????????? | | ?????????????????????????####???????????? | | ????????????????????????## ###?????????? | | ???????????????????????## ##????????? | | ??????????????????????## #????????? | | ????????????????## ### #????????? | | ????????????????# @ ##????????? | | ????????????????# ##????????? | | ????????????????## ###??????? | | ?????????????????# ### ##?????? | | ????????????????# ## #?# #?????? | | ????????????????# ?# #?# #?????? | | ??????????????? g ?? #?## #?????? | | ?????????????# g ??###??## ##?????? | | ????????????? ?????????# ##??????? | | ????????????? ?????????## #???????? | | ??????????????# ?????????# #???????? | | ??????????????## ??????????# ##???????? | | ????????????????##???????????# #????????? | | ?????????????????????????????# #????????? | | ????????####?????????????????# #????????? | | ???????? #?????????????????# #????????? | | ????????# #????????????# #### #????????? | | ????????# #????????????# #????????? | | ????????# #????????????###### #????????? | | ????????# #?????????????????# #????????? | | ???????## ##????????????????# #????????? | | ???????# ###???###??###?### #????????? | | ######## ##### ######## # ###??????? | | # ############ ##?????? | | ######### #?????? | +----------------------------------------------------+ Best States ------------- Heat Dissipation 39 Energy Generation 10 Energy Capacity 125 Matter Stores 300 Matter Capacity 300 Sight Range 16 Terrain Scan Density 10 Evasion (%) 55 Item Schematics ----------------- None Robot Schematics ------------------ None Fabricated ------------ Nothing Repaired ---------- Nothing Studied --------- None Alien Tech Used ----------------- None Achievements -------------- None Challenges ------------ None Game ------ Seed BlanketZeronetMegashotty Manual? 0 Play Time 00:07:01 Cumulative 239.2 hours Start 2025.12.27 @ 16:19:27 End 2025.12.27 @ 16:24:30 Sessions 1 Manual Loads 0 Difficulty Rogue Special Mode None Game No. 321 Rogue 320 Adventurer 1 Explorer 0 Win Type - Total 2 Types 1/0/0/1/0/0/0/0/0/0 Lore% 70 Gallery% 63 Achievement% 55 Wizard Run 0 Options --------- Layout 0 ASCII 0 Keyboard 0 Movement Numpad Keybinds 0 Fullscreen 1 Font 24/Smallcaps Map View 76x50 Zoom Use 0% Tactical HUD 1 Map Filters NONE Filters NONE Steam 1 RUN: 03e7155d-716d-4f11-8c2a-bc488c4ace1c